bitfinex/quotes_ETHUSD_20241101
["timestamp","ask_amount","ask_price","bid_price","bid_amount"]
[1730441219895,3.7904,2506.8,2506.1,8.14755092]
[1730441220228,0.7904,2506.8,2506.2,3.98999]
[1730441220434,0.7904,2506.8,2506.3,4.80458509]
[1730441221082,0.7564,2507.0,2506.6,3.98931]
[1730441221278,0.7564,2507.3,2506.8,3.98909]
[1730441221708,3.98797,2507.6,2507.0,3.35386092]
[1730441221914,4.81957,2507.6,2507.0,3.35386092]
[1730441222139,5.74193036,2507.6,2507.0,3.35386092]
[1730441222308,5.74193036,2507.6,2506.8,7.34299092]
[1730441222514,9.72995036,2507.6,2506.8,7.34299092]
[1730441222708,5.74193036,2507.6,2506.8,7.34299092]
[1730441223033,5.74193036,2507.6,2506.8,3.35386092]
[1730441223210,9.72994036,2507.6,2506.9,0.73430209]
[1730441223410,0.8316,2507.6,2507.1,3.98866]
[1730441223601,0.8316,2507.6,2507.0,4.10446092]
[1730441224102,0.8316,2507.6,2506.8,4.10446092]
[1730441224103,3.0,2507.5,2506.8,4.10446092]
[1730441224294,0.8137,2507.3,2506.5,3.98953]
[1730441224492,3.98851,2507.2,2506.5,4.28759874]
[1730441224693,3.98851,2507.2,2506.5,8.27712874]
[1730441224931,0.8137,2507.3,2506.5,3.98953]
[1730441225134,0.8137,2507.3,2506.6,3.98936]
[1730441225335,3.0,2507.2,2506.6,1.54418834]
[1730441225542,4.80217,2507.3,2506.6,1.24612011]
[1730441225543,3.8137,2507.3,2506.6,1.24612011]
[1730441225835,3.98868,2507.1,2506.6,1.24612011]
[1730441226033,3.0,2506.9,2506.2,4.12756092]
[1730441226198,3.0,2506.9,2506.2,0.7737]
[1730441226199,0.7975,2506.8,2506.2,0.7737]
[1730441226395,0.7975,2506.8,2506.2,0.29825765]
[1730441226620,0.7975,2506.8,2506.1,4.28840765]
[1730441226838,0.7975,2506.8,2506.1,5.13000451]
[1730441227130,0.7975,2506.8,2506.1,9.12017451]
[1730441227295,0.7975,2506.8,2506.1,4.83174686]
[1730441227502,0.7975,2506.8,2506.1,5.13009657]
[1730441227911,0.7975,2506.8,2506.1,9.12026657]
[1730441228108,0.7975,2506.8,2506.2,0.29834971]
[1730441228328,3.98991,2506.4,2506.2,0.29834971]
[1730441228529,3.98991,2506.4,2505.6,0.7784]
[1730441228530,4.77554,2506.3,2505.6,0.7784]
[1730441228831,1.36280518,2506.3,2505.7,0.29848485]
[1730441229054,5.35279518,2506.3,2505.7,0.29848485]
[1730441229256,5.35279518,2506.3,2505.7,0.50679249]
[1730441229620,1.36280518,2506.3,2505.7,0.50679249]
[1730441229849,1.36280518,2506.3,2505.7,0.80524612]
[1730441230055,1.36280518,2506.3,2505.7,0.50679249]
[1730441230378,4.8147,2506.0,2505.3,8.12189092]
[1730441230678,0.8242,2506.3,2505.8,3.99073]
[1730441230956,0.8242,2506.3,2505.9,3.99057]
[1730441231163,3.8242,2506.5,2505.9,5.19957609]
[1730441231373,0.8242,2506.5,2505.9,4.56286701]
[1730441231663,4.82093,2506.8,2506.1,11.33425092]
[1730441231819,8.81022,2506.8,2506.1,7.34402092]
[1730441232021,4.82093,2506.8,2506.1,7.34402092]
[1730441232258,8.81022,2506.8,2506.1,3.99016]
[1730441232417,3.9894,2506.7,2506.1,1.13345709]
[1730441232622,3.98955,2506.6,2505.9,3.99055]
[1730441232822,3.98955,2506.6,2505.8,5.04389438]
[1730441233024,0.61535482,2506.7,2506.0,3.99033]
[1730441233265,3.61535482,2506.7,2506.0,3.99033]
[1730441233564,3.61535482,2506.7,2506.0,4.28868653]
[1730441233873,3.0,2506.7,2506.1,4.81816465]
[1730441234356,3.0,2506.7,2506.1,0.82791465]
[1730441235228,3.0,2506.7,2506.1,4.81816465]
[1730441235816,6.9893,2506.7,2506.1,4.81816465]
[1730441236056,3.0,2506.7,2506.1,0.82791465]
[1730441236571,3.98948,2506.6,2506.1,0.82791465]
[1730441236768,3.0,2506.7,2505.9,4.28883555]
[1730441236939,3.0,2506.7,2506.0,3.99031]
[1730441237142,3.0,2506.7,2506.0,0.29837555]
[1730441237472,3.0,2506.7,2506.2,0.7587]
[1730441238777,0.8317,2506.8,2506.2,5.25352148]
[1730441239071,3.9894,2506.7,2506.2,1.26343148]
[1730441239228,3.9894,2506.7,2506.2,0.7587]
[1730441240439,3.98955,2506.6,2505.9,8.79596]
[1730441240640,3.98955,2506.6,2506.0,0.29837623]
[1730441240924,3.0,2506.7,2506.0,3.99039]
[1730441241138,6.98931,2506.7,2506.0,5.19818985]
[1730441242075,3.0,2506.7,2506.1,3.99023]
[1730441242753,3.0,2506.7,2506.1,3.99017]
[1730441242955,3.0,2506.7,2506.1,7.98032]
[1730441243167,3.0,2506.7,2506.2,0.7694]
[1730441243370,3.0,2506.7,2506.2,1.73531436]
[1730441243672,3.0,2506.7,2506.2,0.7694]
[1730441244463,3.0,2506.9,2506.3,3.98985]
[1730441244664,6.98906,2506.9,2506.2,4.75948]
[1730441245575,3.98916,2506.8,2506.2,4.75948]
[1730441246388,3.98916,2506.8,2506.2,0.7694]
[1730441246589,7.97841,2506.8,2506.2,0.7694]
[1730441246792,0.8054,2506.7,2506.2,0.7694]
[1730441248772,0.8054,2506.7,2506.2,4.75946]
[1730441251069,1.097799,2506.8,2506.2,4.75941]
[1730441251269,7.79611,2506.9,2506.2,4.75941]
[1730441251763,3.8071,2506.9,2506.2,4.75941]
[1730441251980,3.8071,2506.9,2506.3,3.98993]
[1730441252305,6.98899,2506.9,2506.3,3.98993]
[1730441252607,3.98924,2506.8,2506.2,4.75941]
[1730441252966,3.98924,2506.8,2506.2,0.7694]
[1730441253501,7.74552,2506.7,2506.1,3.99017]
[1730441254217,3.7562,2506.7,2506.1,4.28850134]
[1730441254504,3.7562,2506.7,2506.1,3.99017]
[1730441254707,4.36163816,2506.9,2506.2,3.99008]
[1730441255005,8.35065816,2506.9,2506.4,0.7538]
[1730441255207,9.18571498,2506.9,2506.4,0.7538]
[1730441256266,5.19669498,2506.9,2506.4,0.7538]
[1730441256472,0.06905743,2507.3,2506.9,0.7753]
[1730441256664,0.8044,2507.8,2507.2,8.11972314]
[1730441256894,0.8044,2507.8,2507.2,4.13121314]
[1730441257069,4.79204,2507.8,2507.2,4.13121314]
[1730441257566,4.79204,2507.8,2506.9,3.35591314]
[1730441257567,1.682354,2507.8,2506.9,3.35591314]
[1730441257871,0.8044,2507.4,2506.9,4.13121314]
[1730441258687,4.79263,2507.4,2506.9,4.13121314]
[1730441259004,4.79263,2507.4,2506.9,4.42947664]
[1730441259211,4.79263,2507.4,2506.9,4.13121314]
[1730441261082,0.8044,2507.4,2506.9,8.12011314]
[1730441261282,0.8044,2507.4,2506.9,9.33102645]
[1730441262215,0.8044,2507.4,2506.9,5.34212645]
[1730441262518,0.8044,2507.4,2506.9,4.13121314]
[1730441263116,0.8044,2507.4,2506.9,8.12017314]
[1730441263418,0.8044,2507.4,2506.9,4.13121314]
[1730441264085,0.8044,2507.4,2506.9,8.12019314]
[1730441265318,0.8044,2507.4,2506.9,4.13121314]
[1730441266624,0.8044,2507.4,2507.0,3.98875]
[1730441268240,0.8044,2507.4,2507.0,5.19965231]
[1730441268536,0.8288,2507.6,2507.2,7.34441314]
[1730441269041,3.8288,2507.6,2507.2,3.35591314]
[1730441269335,0.8288,2507.6,2507.2,7.34428314]
[1730441269509,0.8288,2507.6,2507.2,8.19983469]
[1730441271414,0.8288,2507.6,2507.2,3.35591314]
[1730441273339,4.8168,2507.6,2507.2,3.35591314]
[1730441275854,3.98804,2507.5,2507.2,3.35591314]
[1730441277034,0.8288,2507.6,2507.2,3.35591314]
[1730441277399,4.81668,2507.6,2507.2,3.35591314]
[1730441277864,3.98807,2507.5,2507.2,3.35591314]
[1730441278055,3.98821,2507.4,2506.9,7.34480314]
[1730441279020,5.99713,2507.6,2507.0,3.98881]
[1730441279224,5.99713,2507.6,2507.2,3.35591314]
[1730441279841,2.00925,2507.6,2507.2,3.35591314]
[1730441280145,0.8288,2507.6,2507.2,3.35591314]
[1730441280559,4.81668,2507.6,2507.2,3.35591314]
[1730441286874,0.8288,2507.6,2507.2,3.35591314]
[1730441287508,7.9747,2508.0,2507.5,3.35591314]
[1730441287706,3.98756,2507.8,2507.5,4.17801314]
[1730441287863,3.0,2507.9,2507.5,4.17801314]
[1730441288063,3.0,2507.9,2507.5,8.16603314]
[1730441288292,3.0,2508.1,2507.8,3.35591314]
[1730441288803,6.98708,2508.1,2507.8,3.35591314]
[1730441289005,5.16059,2508.1,2507.8,3.35591314]
[1730441289220,3.98724,2508.0,2507.8,3.35591314]
[1730441289424,3.98724,2508.0,2507.5,0.8221]
[1730441289425,3.98724,2508.0,2507.6,3.35591314]
[1730441289952,1.17351,2508.1,2507.5,0.8221]
[1730441289953,3.98764,2507.8,2507.5,0.8221]
[1730441290094,3.98764,2507.8,2507.3,0.8252]
[1730441290095,4.74864,2507.8,2507.3,0.8252]
[1730441290290,3.98772,2507.7,2507.3,0.8252]
[1730441291879,3.0,2507.7,2507.3,0.8252]
[1730441292408,6.98772,2507.7,2507.3,0.8252]
[1730441295923,3.98795,2507.6,2507.2,3.65419258]
[1730441296128,3.98827,2507.4,2507.0,4.23958001]
[1730441296293,7.97655,2507.4,2507.1,0.29836278]
[1730441296484,7.97655,2507.4,2507.0,4.53794279]
[1730441296692,4.80707,2507.3,2507.0,3.35591314]
[1730441296896,0.8187,2507.3,2507.0,3.35591314]
[1730441297129,0.8187,2507.3,2507.0,3.65429044]
[1730441297332,0.8187,2507.3,2507.0,3.35591314]
[1730441297847,3.9886,2507.2,2506.9,0.42324698]
[1730441298338,3.9886,2507.2,2506.9,0.12478787]
[1730441298697,3.98872,2507.1,2506.9,0.12478903]
[1730441299012,3.98887,2507.0,2506.8,3.35591314]
[1730441299213,3.98887,2507.0,2506.7,0.29858035]
[1730441299214,3.98899,2506.9,2506.7,0.29858035]
[1730441299428,3.98899,2506.9,2506.5,0.42338109]
[1730441299616,3.98916,2506.8,2506.4,4.12581314]
[1730441299941,0.8187,2506.9,2506.6,3.35591314]
[1730441300103,3.8187,2506.9,2506.6,3.35591314]
[1730441300470,7.80781,2506.9,2506.6,3.35591314]
[1730441300936,3.98919,2506.8,2506.6,3.35591314]
[1730441302032,7.97846,2506.8,2506.4,1.24745193]
[1730441302348,7.97846,2506.8,2506.5,0.42362203]
[1730441302532,3.9894,2506.7,2506.6,0.2987605]
[1730441302842,5.2087947,2506.8,2506.5,0.29877437]
[1730441302998,5.2087947,2506.8,2506.3,0.47755193]
[1730441302999,9.1980747,2506.8,2506.3,0.47755193]
[1730441303198,7.97847,2506.8,2506.4,0.42358103]
[1730441303509,7.97847,2506.8,2506.2,5.28994193]
[1730441303708,3.98931,2506.7,2506.3,0.42351804]
[1730441304042,3.98931,2506.7,2506.4,0.42351804]
[1730441304270,3.98956,2506.6,2506.3,0.12481944]
[1730441304457,3.98956,2506.6,2506.1,0.47755193]
[1730441304652,3.98956,2506.6,2506.2,0.42345455]
[1730441304828,3.98956,2506.6,2506.3,0.42345455]
[1730441305159,3.98956,2506.6,2506.1,0.12481939]
[1730441305336,3.98956,2506.6,2506.2,0.42344727]
[1730441305536,3.98956,2506.6,2506.0,4.81278]
[1730441305537,3.98956,2506.6,2506.1,0.42338462]
[1730441305763,3.98956,2506.6,2506.2,0.29856523]
[1730441305969,3.98987,2506.4,2506.1,0.42338755]
[1730441306167,3.99,2506.3,2506.1,0.29857092]
[1730441306367,3.99,2506.3,2506.0,0.8224]
[1730441306668,3.98987,2506.4,2506.0,0.8224]
[1730441307042,7.97976,2506.4,2506.0,0.8224]
[1730441307362,7.97976,2506.4,2505.9,0.48314984]
[1730441307363,3.99002,2506.3,2505.9,0.48314984]
[1730441307535,3.99012,2506.2,2505.9,0.05984671]
[1730441309173,3.98988,2506.4,2505.9,0.05984671]
[1730441309371,6.98951,2506.6,2506.0,4.12941314]
[1730441309525,3.98972,2506.5,2506.0,8.11981314]
[1730441309732,3.0,2506.4,2506.0,4.7639]
[1730441310159,3.0,2506.4,2506.0,0.7735]
[1730441310324,3.99007,2506.3,2506.0,0.7735]
[1730441310545,5.186077,2506.3,2505.8,0.7764]
[1730441310746,9.176167,2506.3,2505.8,0.7764]
[1730441311073,5.186077,2506.3,2505.8,0.7764]
[1730441311229,4.78707,2506.3,2505.8,0.7764]
[1730441311430,3.99011,2506.2,2505.8,0.7764]
[1730441311635,3.0,2506.4,2505.9,3.99049]
[1730441311853,6.98987,2506.4,2505.9,7.34640314]
[1730441312061,6.98987,2506.4,2505.9,7.34647314]
[1730441312270,6.98987,2506.4,2505.9,8.55783945]
[1730441313433,3.98972,2506.5,2506.0,3.99041]
[1730441313677,3.98972,2506.5,2506.1,0.7879]
[1730441314929,3.98979,2506.4,2506.1,0.7879]
[1730441317431,0.7636,2506.7,2506.1,0.7879]
[1730441317631,3.98986,2506.4,2506.1,0.7879]
[1730441319276,7.97974,2506.4,2506.1,0.7879]
[1730441319476,3.98986,2506.4,2506.1,0.7879]
[1730441321672,3.98958,2506.6,2506.1,0.7879]
[1730441321888,3.98957,2506.6,2506.1,0.7879]
[1730441322180,6.98926,2506.8,2506.2,4.77785]
[1730441322671,3.98933,2506.7,2506.2,0.7879]
[1730441322881,3.98926,2506.8,2506.2,0.7879]
[1730441322882,3.98948,2506.6,2506.2,0.7879]
[1730441323898,3.98932,2506.7,2506.2,0.7879]
[1730441324173,3.98932,2506.7,2506.2,5.78403597]
[1730441325053,3.98932,2506.7,2506.2,1.79394597]
[1730441325241,3.98926,2506.8,2506.2,1.79394597]
[1730441325436,3.98926,2506.8,2506.3,0.7879]
[1730441325675,3.0,2506.9,2506.4,3.98977]
[1730441325850,3.98918,2506.8,2506.3,4.77774]
[1730441326148,3.98918,2506.8,2506.3,5.654534]
[1730441327191,7.97846,2506.8,2506.3,5.654534]
[1730441327358,7.97846,2506.8,2506.3,4.77774]
[1730441327549,3.98918,2506.8,2506.3,4.77774]
[1730441327749,7.97846,2506.8,2506.3,4.77774]
[1730441327952,3.98918,2506.8,2506.3,4.77774]
[1730441328189,7.97844,2506.8,2506.3,4.77774]
[1730441329880,7.97843,2506.8,2506.3,4.77774]
[1730441330189,3.98918,2506.8,2506.3,4.77774]
[1730441330658,7.97844,2506.8,2506.3,4.77774]
[1730441331054,3.98949,2506.6,2506.3,0.7879]
[1730441331376,7.97908,2506.6,2506.3,0.7879]
[1730441331572,3.98949,2506.6,2506.3,0.7879]
[1730441331978,3.98964,2506.5,2506.3,0.7879]
[1730441332884,3.98949,2506.6,2506.3,0.7879]
[1730441335510,0.7541,2506.7,2506.3,0.7879]
[1730441335685,3.98946,2506.6,2506.3,0.7879]
[1730441338994,7.97901,2506.6,2506.3,0.7879]
[1730441339200,3.98946,2506.6,2506.3,0.7879]
[1730441339563,7.97904,2506.6,2506.3,0.7879]
[1730441340002,3.98946,2506.6,2506.3,0.7879]
[1730441340587,3.98934,2506.7,2506.3,0.7879]
[1730441340795,3.0,2506.6,2506.3,0.7879]
[1730441342488,3.0,2506.6,2506.4,0.29880533]
[1730441342691,3.0,2506.6,2506.3,0.7879]
[1730441343388,3.0,2506.6,2506.4,0.42374084]
[1730441343692,3.0,2506.6,2506.3,0.7879]
[1730441343887,3.0,2506.6,2506.4,0.42374055]
[1730441344077,3.0,2506.6,2506.3,0.7879]
[1730441344277,3.0,2506.6,2506.4,0.42373984]
[1730441344522,3.0,2506.6,2506.3,1.26633547]
[1730441344817,2.99605043,2506.6,2506.4,0.42384132]
[1730441344981,6.98552043,2506.6,2506.3,0.7879]
[1730441345322,6.98552043,2506.6,2506.4,0.42384386]
[1730441345622,6.98552043,2506.6,2506.3,0.7879]
[1730441345914,6.98552043,2506.6,2506.4,0.42387997]
[1730441346214,6.98552043,2506.6,2506.3,0.7879]
[1730441346416,6.98552043,2506.6,2506.4,0.42388857]
[1730441346588,4.76555,2507.2,2506.6,3.98938]
[1730441346782,3.98865,2507.2,2506.8,0.7851]
[1730441346974,3.98868,2507.1,2506.9,0.42382897]
[1730441347178,3.98868,2507.1,2506.8,0.7851]
[1730441347420,3.98868,2507.1,2506.9,1.80079879]
[1730441347736,3.98868,2507.1,2506.9,1.50179945]
[1730441348078,3.98867,2507.1,2506.9,1.50179945]
[1730441348322,3.98883,2507.0,2506.8,0.7851]
[1730441348620,3.98883,2507.0,2506.9,0.29896277]
[1730441348917,7.97745,2507.1,2506.9,0.42376258]
[1730441349088,3.98473043,2507.1,2506.8,0.7851]
[1730441349305,7.97348043,2507.1,2506.9,0.42375342]
[1730441349503,7.97353043,2507.1,2506.8,0.7851]
[1730441349707,3.98473043,2507.1,2506.9,0.29890709]
[1730441349895,3.98473043,2507.1,2506.8,0.7851]
[1730441349896,7.97355043,2507.1,2506.8,0.7851]
[1730441350097,3.98473043,2507.1,2506.9,0.29890607]
[1730441350324,7.97350043,2507.1,2506.8,0.7851]
[1730441350725,3.98889,2507.0,2506.9,0.29885537]
[1730441350999,3.98899,2506.9,2506.6,0.95642565]
[1730441351312,3.98899,2506.9,2506.7,0.42366909]
[1730441351635,3.98899,2506.9,2506.6,1.0482863]
[1730441351636,0.8048,2507.0,2506.6,1.0482863]
[1730441351795,0.8048,2507.0,2506.7,0.42363539]
[1730441351996,3.98876,2507.1,2506.6,1.0482863]
[1730441352212,3.98876,2507.1,2506.7,0.42364107]
[1730441352533,3.98876,2507.1,2506.8,0.42363412]
[1730441352693,7.97758,2507.1,2506.6,5.0377463]
[1730441352895,7.97758,2507.1,2506.7,1.01080233]
[1730441353092,7.97758,2507.1,2506.8,0.42361771]
[1730441353297,3.98883,2507.0,2506.7,0.58718307]
[1730441353496,3.98481122,2507.1,2506.8,0.29878905]
[1730441353735,3.98481122,2507.1,2506.7,0.58718307]
[1730441354034,3.98481122,2507.1,2506.8,1.18528654]
[1730441354230,7.97360122,2507.1,2506.8,0.7617]
[1730441354442,3.98481122,2507.1,2506.8,0.7617]
[1730441354642,7.97359122,2507.1,2506.8,0.7617]
[1730441355106,3.98884,2507.0,2506.8,0.7617]
[1730441355299,3.98481122,2507.1,2506.8,0.7617]
[1730441356555,7.97360122,2507.1,2506.8,0.7617]
[1730441357050,3.98883,2507.0,2506.7,0.58718307]
[1730441357250,3.98883,2507.0,2506.6,1.34633857]
[1730441357420,3.989,2506.9,2506.7,0.42355166]
[1730441357762,3.989,2506.9,2506.5,0.47810833]
[1730441357913,6.9893,2506.7,2506.6,0.29875444]
[1730441358114,3.98956,2506.6,2506.4,0.4235958]
[1730441358349,3.98956,2506.6,2506.0,8.8155907]
[1730441358350,0.7918,2506.6,2506.1,1.25440833]
[1730441358560,7.78129,2506.6,2506.2,1.0316012]
[1730441358763,7.78129,2506.6,2506.3,0.4236343]
[1730441358961,7.78129,2506.6,2506.4,0.42363654]
[1730441359145,7.78129,2506.6,2506.2,4.5980469]
[1730441359146,3.0,2506.6,2506.2,4.5980469]
[1730441359313,3.0,2506.6,2506.3,0.42362128]
[1730441359521,3.0,2506.6,2506.4,0.12481477]
[1730441359824,3.0,2506.6,2506.4,0.29880736]
[1730441360039,3.0,2506.6,2506.2,1.08606965]
[1730441360226,6.98962,2506.6,2506.3,0.12482089]
[1730441360420,3.98975,2506.5,2506.4,0.29883451]
[1730441360616,3.98975,2506.5,2506.1,1.25440275]
[1730441360815,3.98975,2506.5,2506.2,0.42366074]
[1730441361035,3.98975,2506.5,2506.3,0.42366074]
[1730441361266,4.80848,2506.4,2506.1,0.47810275]
[1730441361551,4.80848,2506.4,2506.2,0.42369311]
[1730441361758,4.80848,2506.4,2506.0,0.47810275]
[1730441361914,4.80848,2506.4,2506.1,0.42369592]
[1730441362119,4.80848,2506.4,2505.9,1.28620275]
[1730441362318,4.80848,2506.4,2506.0,0.90179643]
[1730441362631,4.80848,2506.4,2505.8,0.47810275]
[1730441362632,3.99058,2505.9,2505.8,0.47810275]
[1730441362815,3.99058,2505.9,2505.5,0.47810275]
[1730441362816,3.99082,2505.8,2505.5,0.47810275]
[1730441363017,3.99082,2505.8,2505.4,0.7606]
[1730441363242,3.99058,2505.9,2505.6,0.42376149]
[1730441363426,3.9909,2505.7,2505.6,0.29890847]
[1730441363644,3.9909,2505.7,2505.5,0.29890847]
[1730441363847,3.9909,2505.7,2505.4,0.7606]
[1730441364161,3.9909,2505.7,2505.5,0.29882949]
[1730441364370,3.9909,2505.7,2505.4,0.7606]
[1730441364569,3.99075,2505.8,2505.4,0.7606]
[1730441364869,7.98163,2505.8,2505.5,0.29869211]
[1730441365029,3.99075,2505.8,2505.4,0.7606]
[1730441365431,4.79665,2505.8,2505.3,0.4234541]
[1730441365677,4.79665,2505.8,2505.3,0.73041074]
[1730441366374,4.79665,2505.8,2505.3,1.02900896]
[1730441366375,3.99094,2505.7,2505.3,1.02900896]
[1730441366734,3.99094,2505.7,2505.3,0.90414833]
[1730441367239,3.99094,2505.7,2505.3,0.60555011]
[1730441367240,3.98698901,2505.7,2505.3,0.60555011]
[1730441368052,4.79665,2505.8,2505.3,0.60555011]
[1730441368242,8.78751,2505.8,2505.3,0.60555011]
[1730441368828,4.79665,2505.8,2505.3,0.60555011]
[1730441369373,8.78749,2505.8,2505.3,0.60555011]
[1730441369539,3.99116,2505.6,2505.2,0.777]
[1730441369867,8.78759,2505.8,2505.2,4.76868]
[1730441370244,3.99093,2505.7,2505.2,4.76868]
[1730441370444,3.99093,2505.7,2505.2,6.01868821]
[1730441371366,3.99093,2505.7,2505.2,2.02700821]
[1730441372437,3.99107,2505.6,2505.2,2.02700821]
[1730441372652,4.79672,2505.8,2505.2,2.02700821]
[1730441373133,4.79672,2505.8,2505.2,6.01866821]
[1730441373338,5.276392,2505.8,2505.2,4.76866]
[1730441373575,3.99082,2505.8,2505.3,3.99149]
[1730441374144,4.78028,2506.0,2505.4,3.99135]
[1730441374145,3.0,2505.9,2505.4,3.99135]
[1730441374340,3.0,2505.9,2505.5,0.758]
[1730441374542,3.0,2505.9,2505.6,1.50256049]
[1730441375083,6.99062,2505.9,2505.6,1.50256049]
[1730441375642,6.99062,2505.9,2505.5,0.758]
[1730441375876,3.99079,2505.8,2505.5,0.758]
[1730441376677,10.98132,2505.9,2505.5,0.758]
[1730441376889,3.99076,2505.8,2505.5,0.758]
[1730441378574,6.99062,2505.9,2505.5,0.758]
[1730441378741,10.98129,2505.9,2505.5,0.758]
[1730441379286,3.99082,2505.8,2505.5,0.758]
[1730441383869,0.7898,2506.0,2505.5,0.758]
[1730441384177,3.99039,2506.1,2505.6,0.8242]
[1730441384568,3.99042,2506.0,2505.6,0.8242]
[1730441385008,3.99058,2505.9,2505.6,0.8242]
[1730441387807,3.99039,2506.1,2505.6,0.8242]
[1730441388117,3.9906,2505.9,2505.6,0.8242]
[1730441388283,7.98128,2505.9,2505.4,0.788]
[1730441388490,3.9906,2505.9,2505.4,0.788]
[1730441389906,3.9906,2505.9,2505.4,4.85916727]
[1730441390208,3.9906,2505.9,2505.4,5.66440873]
[1730441390744,3.9906,2505.9,2505.4,0.788]
[1730441390942,3.99084,2505.8,2505.4,0.788]
[1730441393639,3.9909,2505.7,2505.4,0.788]
[1730441394140,3.9906,2505.9,2505.4,0.788]
[1730441394462,3.99075,2505.8,2505.4,0.788]
[1730441395951,3.99094,2505.7,2505.4,0.788]
[1730441399682,4.75072,2505.9,2505.4,0.788]
[1730441400484,3.99082,2505.8,2505.4,0.788]
[1730441400659,4.75072,2505.9,2505.4,0.788]
[1730441400869,3.99107,2505.6,2505.4,0.788]
[1730441401396,4.75079,2505.9,2505.4,0.788]
[1730441401397,3.99092,2505.7,2505.4,0.788]
[1730441402187,3.9909,2505.7,2505.4,0.788]
[1730441402395,4.75076,2505.9,2505.4,0.788]
[1730441402396,3.99074,2505.8,2505.4,0.788]
[1730441403395,3.99094,2505.7,2505.4,0.788]
[1730441404395,6.99118,2505.6,2505.2,0.89482443]
[1730441404699,6.99118,2505.6,2505.1,0.32524201]
[1730441404700,3.8309,2505.2,2505.1,0.32524201]
[1730441404901,7.82259,2505.2,2505.1,0.32524201]
[1730441405403,6.99169,2505.2,2505.1,0.32524201]
[1730441405570,3.0,2505.2,2505.1,0.32524201]
[1730441405808,3.99155,2505.3,2505.1,0.32524201]
[1730441406428,7.98317,2505.3,2505.1,0.32524201]
[1730441406594,3.99155,2505.3,2505.1,0.32524201]
[1730441407991,7.98323,2505.3,2505.1,0.32524201]
[1730441408231,7.98318,2505.3,2505.1,0.32524201]
[1730441408607,3.99169,2505.2,2505.1,0.32524201]
[1730441410513,3.99155,2505.3,2505.1,0.32524201]
[1730441411033,7.98324,2505.3,2505.1,0.32524201]
[1730441411413,3.99155,2505.3,2505.1,0.32524201]
[1730441411743,7.98324,2505.3,2505.1,0.32524201]
[1730441412107,3.99155,2505.3,2505.1,0.32524201]
[1730441412307,7.98322,2505.3,2505.1,0.32524201]
[1730441412527,3.99169,2505.2,2505.1,0.32524201]
[1730441414847,5.76440941,2505.2,2505.1,0.32524201]
[1730441415414,8.76440941,2505.2,2505.1,0.32524201]
[1730441419644,8.76440941,2505.2,2504.1,0.7502]
[1730441419645,3.99278,2504.6,2504.1,0.7502]
[1730441419830,1.50295409,2504.2,2503.9,1.17372115]
[1730441420056,3.99361,2504.0,2503.9,0.7502]
[1730441420272,7.98703,2504.1,2503.7,0.7502]
[1730441420570,4.79773536,2504.1,2503.7,0.7502]
[1730441421075,3.99362,2504.0,2503.7,0.7502]
[1730441421232,3.99378,2503.9,2503.7,0.7502]
[1730441421586,3.99378,2503.9,2503.1,0.47776573]
[1730441421587,3.99459,2503.4,2503.0,0.7779]
[1730441422074,3.99488,2503.3,2503.0,0.7779]
[1730441422274,3.99504,2503.1,2503.0,0.7779]
[1730441422474,1.50295409,2503.1,2502.8,0.7779]
[1730441422784,1.50295409,2503.3,2502.8,0.7779]
[1730441423076,0.7667,2503.7,2503.1,0.7779]
[1730441423077,3.0,2503.5,2503.1,0.7779]
[1730441423636,8.49710409,2503.7,2503.1,1.2632065]
[1730441423948,3.99428,2503.6,2503.1,1.2632065]
[1730441424277,3.99428,2503.6,2503.1,1.34310154]
[1730441424477,3.99443,2503.5,2503.1,1.2632065]
[1730441424699,3.99428,2503.6,2503.1,1.2632065]
[1730441425063,3.99443,2503.5,2503.1,0.7779]
[1730441425260,3.99459,2503.4,2503.1,0.7779]
[1730441425476,6.36454105,2503.7,2502.8,0.07989375]
[1730441425477,3.0,2503.6,2502.9,0.83]
[1730441425660,3.99474,2503.3,2502.9,0.83]
[1730441426210,3.99474,2503.3,2502.9,1.712118]
[1730441426892,3.99472,2503.4,2502.9,1.712118]
[1730441427103,3.99437,2503.6,2502.9,0.07990051]
[1730441427304,7.18414105,2503.7,2502.8,0.7914]
[1730441427305,6.99473,2503.3,2502.8,0.7914]
[1730441427506,3.0,2503.3,2502.8,0.7914]
[1730441427807,6.99484,2503.3,2502.8,0.7914]
[1730441428100,3.99495,2503.2,2502.8,0.7914]
[1730441428271,3.0,2503.3,2502.8,0.7914]
[1730441428797,6.99473,2503.3,2502.8,0.7914]
[1730441429005,3.99381,2503.9,2502.8,3.85123634]
[1730441429162,3.99375,2504.0,2503.3,0.8174]
[1730441429367,3.99389,2503.9,2503.3,0.8174]
[1730441429698,3.99404,2503.8,2503.3,0.8174]
[1730441430107,3.99425,2503.6,2503.3,0.8174]
[1730441430459,3.0,2503.7,2503.3,0.8174]
[1730441430664,6.99411,2503.7,2503.3,0.8174]
[1730441430993,3.84101474,2503.7,2503.3,0.8174]
[1730441431199,7.83525474,2503.7,2503.3,0.8174]
[1730441431586,3.84101474,2503.7,2503.3,0.8174]
[1730441432212,3.0,2503.7,2503.3,0.8174]
[1730441433909,6.99415,2503.7,2503.3,0.8174]
[1730441434106,3.0,2503.7,2503.3,0.8174]
[1730441434316,0.41659643,2503.9,2503.4,3.99454]
[1730441434317,3.41659643,2503.9,2503.4,3.99454]
[1730441434495,3.41659643,2503.9,2503.4,4.48364304]
[1730441434667,3.99277,2504.6,2503.8,3.99392]
[1730441434872,2.20215106,2504.8,2504.2,0.7981]
[1730441434873,4.79316,2504.8,2504.2,0.7981]
[1730441435112,1.67817799,2504.7,2504.2,4.79138]
[1730441435292,5.67068799,2504.7,2504.2,0.7481]
[1730441435506,5.67068799,2504.7,2504.2,4.74138]
[1730441435864,7.82323741,2504.9,2504.3,3.993]